fUSD/lending_fUSD_20260426
["ID","MTS","AMOUNT","RATE_DAILY","PERIOD"]
[421178050,1777211626502,269.05,0.000158,120]
[421178051,1777211635758,151.0,0.00032877,120]
[421178052,1777211643589,151.0,0.00032877,120]
[421178053,1777211645979,6815.0,0.00032877,120]
[421178054,1777211648299,203.452386,0.00022655,120]
[421178055,1777211654013,151.0,0.00032877,120]
[421178056,1777211662823,151.0,0.00032877,120]
[421178057,1777211669543,368.746842,0.0002275,120]
[421178058,1777211670480,151.0,0.00032877,120]
[421178059,1777211678219,151.0,0.00032877,120]
[421178060,1777211681526,151.0,0.00032877,120]
[421178061,1777211689195,151.0,0.00032877,120]
[421178064,1777211701783,151.0,0.00032877,120]
[421178066,1777211712105,151.0,0.00032877,120]
[421178068,1777211721197,151.0,0.00032877,120]
[421178069,1777211728590,151.0,0.00032877,120]
[421178070,1777211736513,151.0,0.00032877,120]
[421178071,1777211744955,151.0,0.00032877,120]
[421178072,1777211745461,764.121826,0.0002275,120]
[421178073,1777211753015,151.0,0.00032877,120]
[421178074,1777211769765,999.556789,0.0002275,120]
[421178075,1777211773310,151.0,0.00032877,120]
[421178076,1777211780554,151.0,0.00032877,120]
[421178077,1777211789811,151.0,0.00032877,120]
[421178078,1777211798526,151.0,0.00032877,120]
[421178079,1777211805813,50992.25,0.00032877,120]
[421178080,1777211807422,151.0,0.00032877,120]
[421178081,1777211813760,150.0,0.00015,120]
[421178082,1777211814373,150.0,0.000158,120]
[421178083,1777211825393,151.0,0.00032877,120]
[421178084,1777211836077,151.0,0.00032877,120]
[421178086,1777211849122,151.0,0.00032877,120]
[421178087,1777211858129,151.0,0.00032877,120]
[421178088,1777211865632,151.0,0.00032877,120]
[421178089,1777211865684,170.836188,0.00022555,120]
[421178090,1777211880966,151.0,0.00032877,120]
[421178091,1777211881579,150.0,0.00032876,120]
[421178092,1777211887446,151.0,0.00032877,120]
[421178093,1777211896296,151.0,0.00032877,120]
[421178094,1777211896453,184.373421,0.00022555,120]
[421178095,1777211904883,151.0,0.00032877,120]
[421178096,1777211912294,281.44517,0.00022555,120]
[421178097,1777211913017,151.0,0.00032877,120]
[421178098,1777211919689,150.0,0.00032876,120]
[421178099,1777211923106,1588.68,0.00032877,120]
[421178100,1777211934562,113159.21254924,0.00032876,120]
[421178101,1777211942747,151.0,0.00032877,120]
[421178102,1777211952544,151.0,0.00032877,120]
[421178103,1777211961359,200.0,0.00025,120]
[421178104,1777211963805,312.950918,0.0002254,120]
[421178105,1777211964267,151.0,0.00032877,120]
[421178106,1777211974973,151.0,0.00032877,120]
[421178109,1777211996620,151.0,0.00032877,120]
[421178111,1777212001374,177.81,0.00015,120]
[421178112,1777212006174,151.0,0.00032877,120]
[421178113,1777212009303,185.03431921,0.00029888,120]
[421178114,1777212017861,218.333224,0.0002254,120]
[421178115,1777212039008,151.0,0.00032877,120]
[421178116,1777212041738,160.72,0.000328,120]
[421178117,1777212046428,151.0,0.00032877,120]
[421178118,1777212053017,158.89,0.000328,120]
[421178119,1777212053493,151.0,0.00032877,120]
[421178121,1777212055050,491.71910327,0.0003,120]
[421178122,1777212057643,1766.23187769,0.000328,120]
[421178123,1777212060326,151.0,0.00032877,120]
[421178124,1777212060691,706.09174523,0.00028,120]
[421178125,1777212062698,792.02551056,0.0003,120]
[421178126,1777212067774,151.0,0.00032877,120]
[421178127,1777212068751,-300.0,8.699e-05,2]
[421178128,1777212068775,-4700.0,8.7e-05,2]
[421178129,1777212070006,-166.63549407,8.699e-05,2]
[421178130,1777212070031,-202.08739332,8.699e-05,2]
[421178131,1777212070054,-500.0,8.699e-05,2]
[421178132,1777212070077,-179.54128217,8.699e-05,2]
[421178133,1777212070099,-500.0,8.699e-05,2]
[421178134,1777212070122,-3451.73583044,8.7e-05,2]
[421178135,1777212070944,-500.0,8.699e-05,2]
[421178136,1777212070968,-592.17081259,8.699e-05,2]
[421178137,1777212070991,-215.78902491,8.699e-05,2]
[421178138,1777212071018,-500.0,8.699e-05,2]
[421178139,1777212071041,-3192.0401625,8.7e-05,2]
[421178140,1777212073324,-5000.0,8.7e-05,2]
[421178141,1777212074065,-5000.0,8.7e-05,2]
[421178142,1777212074505,-5000.0,8.7e-05,2]
[421178143,1777212074819,-5000.0,8.7e-05,2]
[421178144,1777212075187,-308.09394173,8.699e-05,2]
[421178145,1777212075215,-500.0,8.699e-05,2]
[421178146,1777212075243,-500.0,8.699e-05,2]
[421178147,1777212075271,-500.0,8.699e-05,2]
[421178148,1777212075297,-3191.90605827,8.7e-05,2]
[421178149,1777212075349,151.0,0.00032877,120]
[421178150,1777212075564,-500.0,8.699e-05,2]
[421178151,1777212075595,-500.0,8.699e-05,2]
[421178152,1777212075625,-500.0,8.699e-05,2]
[421178153,1777212075649,-3500.0,8.7e-05,2]
[421178154,1777212075947,-500.0,8.699e-05,2]
[421178155,1777212075975,-500.0,8.699e-05,2]
[421178156,1777212076003,-500.0,8.699e-05,2]
[421178157,1777212076029,-500.0,8.699e-05,2]
[421178158,1777212076057,-500.0,8.699e-05,2]
[421178159,1777212076085,-500.0,8.699e-05,2]
[421178160,1777212076115,-454.84479066,8.699e-05,2]
[421178161,1777212076141,-500.0,8.699e-05,2]
[421178162,1777212076512,-500.0,8.699e-05,2]
[421178163,1777212076542,-500.0,8.699e-05,2]
[421178164,1777212076567,-45.15520934,8.7e-05,2]
[421178165,1777212076680,-500.0,8.699e-05,2]
[421178166,1777212076708,-500.0,8.699e-05,2]
[421178167,1777212076735,-500.0,8.699e-05,2]
[421178168,1777212076763,-500.0,8.699e-05,2]
[421178169,1777212076787,-3000.0,8.7e-05,2]
[421178170,1777212078148,-500.0,8.699e-05,2]
[421178171,1777212078170,-4500.0,8.7e-05,2]
[421178172,1777212079201,-500.0,8.699e-05,2]
[421178173,1777212079225,-4500.0,8.7e-05,2]
[421178174,1777212081703,-5000.0,8.7e-05,2]
[421178175,1777212082131,151.0,0.00032877,120]
[421178176,1777212084402,-5000.0,8.7e-05,2]
[421178177,1777212086046,-5000.0,8.7e-05,2]
[421178178,1777212087968,-5000.0,8.7e-05,2]
[421178179,1777212090373,151.0,0.00032877,120]
[421178181,1777212096725,152.0,8.798e-05,30]
[421178182,1777212097457,152.0,8.974e-05,30]
[421178183,1777212097751,151.0,0.00032877,120]
[421178184,1777212098686,152.0,8.974e-05,30]
[421178185,1777212100063,152.0,8.983e-05,30]
[421178186,1777212101475,152.0,8.983e-05,30]
[421178187,1777212104284,151.0,0.00032877,120]
[421178188,1777212106437,543.99310683,0.00032877,120]
[421178189,1777212111305,151.0,0.00032877,120]
[421178190,1777212114465,158.0,0.000328,120]
[421178191,1777212122669,151.0,0.00032877,120]
[421178192,1777212150301,151.0,0.00032877,120]
[421178194,1777212157228,151.0,0.00032877,120]
[421178195,1777212164313,151.0,0.00032877,120]
[421178196,1777212165551,-182.0,8.699e-05,2]
[421178197,1777212171879,151.0,0.00032877,120]
[421178198,1777212179297,151.0,0.00032877,120]
[421178199,1777212187162,151.0,0.00032877,120]
[421178200,1777212194856,151.0,0.00032877,120]
[421178201,1777212199430,500.0,0.00026613,120]
[421178202,1777212199793,500.0,0.00029518,120]
[421178203,1777212200143,500.0,0.00031618,120]
[421178204,1777212203625,151.0,0.00032877,120]
[421178205,1777212210990,151.0,0.00032877,120]
[421178206,1777212219405,151.0,0.00032877,120]
[421178207,1777212222313,320.0,0.00032876,120]
[421178208,1777212226134,151.0,0.00032877,120]
[421178209,1777212233498,151.0,0.00032877,120]
[421178210,1777212240313,151.0,0.00032877,120]
[421178211,1777212241857,737.50449494,0.00032876,120]
[421178212,1777212248395,151.0,0.00032877,120]
[421178218,1777212282872,151.0,0.00032877,120]
[421178219,1777212287781,151.0,0.00032877,120]
[421178220,1777212301993,618.525,9.522e-05,54]
[421178221,1777212310349,1000.0,0.00032877,120]
[421178224,1777212326303,1000.0,0.00032877,120]
[421178225,1777212341554,151.0,0.00032877,120]
[421178226,1777212348829,151.0,0.00032877,120]
[421178227,1777212355212,151.0,0.00032877,120]
[421178228,1777212362981,151.0,0.00032877,120]
[421178229,1777212369748,151.0,0.00032877,120]
[421178230,1777212377989,151.0,0.00032877,120]
[421178249,1777212391541,151.0,0.00032877,120]
[421178254,1777212399871,151.0,0.00032877,120]
[421178255,1777212407907,151.0,0.00032877,120]
[421178256,1777212416007,151.0,0.00032877,120]
[421178257,1777212423361,151.0,0.00032877,120]
[421178258,1777212431165,151.0,0.00032877,120]
[421178259,1777212438743,151.0,0.00032877,120]
[421178261,1777212446018,151.0,0.00032877,120]
[421178262,1777212452926,151.0,0.00032877,120]
[421178263,1777212459932,151.0,0.00032877,120]
[421178264,1777212466983,151.0,0.00032877,120]
[421178265,1777212474135,151.0,0.00032877,120]
[421178266,1777212482526,151.0,0.00032877,120]
[421178267,1777212490262,151.0,0.00032877,120]
[421178268,1777212498624,151.0,0.00032877,120]
[421178269,1777212506370,151.0,0.00032877,120]
[421178270,1777212515049,151.0,0.00032877,120]
[421178271,1777212516102,150.0,0.00032877,120]
[421178272,1777212518587,150.0,0.00032877,120]
[421178273,1777212527435,173.1523285,0.00032877,120]
[421178274,1777212565966,151.0,0.00032877,120]
[421178275,1777212572845,151.0,0.00032877,120]
[421178276,1777212579411,151.0,0.00032877,120]
[421178277,1777212619095,151.0,0.00032877,120]
[421178286,1777212638311,-228.13,8.656e-05,2]
[421178287,1777212638321,-300.0,8.698e-05,2]
[421178288,1777212638331,-1200.0,8.698e-05,2]
[421178289,1777212638341,-500.0,8.699e-05,2]
[421178290,1777212638352,-246.0,8.699e-05,2]
[421178291,1777212638362,-150.0,8.699e-05,2]
[421178292,1777212638371,-500.0,8.699e-05,2]
[421178293,1777212638381,-614.51956882,8.699e-05,2]
[421178294,1777212638391,-500.0,8.699e-05,2]
[421178295,1777212638400,-500.0,8.699e-05,2]
[421178296,1777212638409,-500.0,8.699e-05,2]
[421178297,1777212638419,-500.0,8.699e-05,2]
[421178298,1777212638429,-500.0,8.699e-05,2]
[421178299,1777212638439,-500.0,8.699e-05,2]
[421178300,1777212638448,-500.0,8.699e-05,2]
[421178301,1777212638459,-500.0,8.699e-05,2]
[421178302,1777212638469,-500.0,8.699e-05,2]
[421178303,1777212638479,-500.0,8.699e-05,2]
[421178304,1777212638490,-500.0,8.699e-05,2]
[421178305,1777212638501,-500.0,8.699e-05,2]
[421178306,1777212638511,-500.0,8.699e-05,2]
[421178307,1777212638521,-500.0,8.699e-05,2]
[421178308,1777212638532,-357.97884911,8.699e-05,2]
[421178309,1777212638543,-500.0,8.699e-05,2]
[421178310,1777212638554,-500.0,8.699e-05,2]
[421178311,1777212638565,-500.0,8.699e-05,2]
[421178312,1777212638575,-500.0,8.699e-05,2]
[421178313,1777212638585,-500.0,8.699e-05,2]
[421178314,1777212638595,-500.0,8.699e-05,2]
[421178315,1777212638604,-500.0,8.699e-05,2]
[421178316,1777212638614,-500.0,8.699e-05,2]
[421178317,1777212638624,-500.0,8.699e-05,2]
[421178318,1777212638634,-500.0,8.699e-05,2]
[421178319,1777212638644,-500.0,8.699e-05,2]
[421178320,1777212638653,-500.0,8.699e-05,2]
[421178321,1777212638667,-500.0,8.699e-05,2]
[421178322,1777212638677,-500.0,8.699e-05,2]
[421178323,1777212638686,-500.0,8.699e-05,2]
[421178324,1777212638697,-500.0,8.699e-05,2]
[421178325,1777212638707,-500.0,8.699e-05,2]
[421178326,1777212638717,-500.0,8.699e-05,2]
[421178327,1777212638726,-549.99999999,8.699e-05,2]
[421178328,1777212638736,-500.0,8.699e-05,2]
[421178329,1777212638746,-500.0,8.699e-05,2]
[421178330,1777212638756,-500.0,8.699e-05,2]
[421178331,1777212638766,-500.0,8.699e-05,2]
[421178332,1777212638777,-500.0,8.699e-05,2]
[421178333,1777212638787,-500.0,8.699e-05,2]
[421178335,1777212638797,-500.0,8.699e-05,2]
[421178337,1777212638806,-351.05231744,8.699e-05,2]
[421178339,1777212638816,-500.0,8.699e-05,2]
[421178342,1777212638826,-500.0,8.699e-05,2]
[421178344,1777212638837,-250.0,8.699e-05,2]
[421178345,1777212638846,-500.0,8.699e-05,2]
[421178348,1777212638856,-21962.94572284,8.7e-05,2]
[421178351,1777212638883,-2314.85243339,8.7e-05,2]
[421178354,1777212638899,-842.77482899,8.7e-05,2]
[421178357,1777212638919,-1132.68254729,8.7e-05,2]
[421178359,1777212638932,-389253.13506836,8.7e-05,2]
[421178361,1777212638942,-420.0,9.568e-05,2]
[421178363,1777212638952,-255.0,9.569e-05,2]
[421178365,1777212638962,-287.0,0.00010525,2]
[421178367,1777212638971,-433.0,0.00010526,2]
[421178369,1777212638982,-284.53137082,0.000109,2]
[421178371,1777212638991,-150.0,0.00010948,2]
[421178373,1777212639001,-166.20871337,0.00010959,2]
[421178375,1777212639012,-6993.43919335,0.00011099,2]
[421178377,1777212639023,-687.0,0.00011578,2]
[421178379,1777212639033,-60072.57484933,0.00011967,2]
[421178381,1777212639050,-41989.03429514,0.00011967,2]
[421178404,1777212639268,-11985.21425683,0.00011967,2]
[421178495,1777212640741,-718.4453364,0.00011967,2]
[421178496,1777212640753,-3478.5063967,0.00011967,2]
[421178497,1777212640763,-500.0,0.00011973,2]
[421178498,1777212640773,-500.52704473,0.00011973,2]
[421178499,1777212640785,-500.0,0.00011973,2]
[421178500,1777212640795,-500.0,0.00011973,2]
[421178501,1777212640805,-167.94508927,0.00011973,2]
[421178502,1777212640817,-500.33594048,0.00011973,2]
[421178503,1777212640829,-500.0,0.00011973,2]
[421178504,1777212640840,-500.0,0.00011973,2]
[421178505,1777212640850,-500.0,0.00011973,2]
[421178506,1777212640860,-500.0,0.00011973,2]
[421178507,1777212640870,-500.0,0.00011973,2]
[421178508,1777212640883,-500.0,0.00011973,2]
[421178509,1777212640893,-160.27842141,0.00011973,2]
[421178510,1777212640904,-6993.43919328,0.00012091,2]
[421178511,1777212640914,-310.52563929,0.000125,2]
[421178512,1777212640924,-1000.0,0.00012521,2]
[421178513,1777212640934,-500.97543413,0.00012521,2]
[421178514,1777212640944,-500.62439048,0.00012521,2]
[421178515,1777212640954,-1000.0,0.00012521,2]
[421178517,1777212640965,-1001.98527228,0.00012521,2]
[421178518,1777212640976,-500.0,0.00012521,2]
[421178519,1777212640987,-1000.0,0.00012521,2]
[421178520,1777212640998,-1000.0,0.00012521,2]
[421178521,1777212641009,-400.36557836,0.00012521,2]
[421178523,1777212641019,-1003.9209333,0.00013068,2]
[421178524,1777212641032,-183.0904907,0.00013068,2]
[421178525,1777212641043,-1223.26820509,0.00013068,2]
[421178526,1777212641053,-1000.0,0.00013068,2]
[421178527,1777212641064,-284.53137076,0.00013222,2]
[421178528,1777212641074,-1000.0,0.000135,2]
[421178529,1777212641083,-160.0,0.00013542,2]
[421178530,1777212641093,-500.0,0.00013673,2]
[421178531,1777212641103,-500.0,0.00013673,2]
[421178532,1777212641113,-500.0,0.00013673,2]
[421178533,1777212641122,-25607.5927929,0.00013694,2]
[421178534,1777212641132,-776.1596893,0.00013695,2]
[421178535,1777212641142,-500.0,0.00013698,2]
[421178536,1777212641152,-500.0,0.00013698,2]
[421178537,1777212641162,-195.58,0.00013699,2]
[421178538,1777212641172,-162.98,0.00013699,2]
[421178539,1777212641182,-814.92,0.00013699,2]
[421178540,1777212641192,-5713.8262809,0.00014079,2]
[421178541,1777212641203,-173.1846357,0.00014081,2]
[421178542,1777212641212,-1000.0,0.00014221,2]
[421178543,1777212641222,-1022.06145725,0.00014221,2]
[421178544,1777212641232,-212.5,0.00014252,30]
[421178545,1777212641242,-272.45833631,0.00014768,2]
[421178546,1777212641252,-337.64303155,0.00015,2]
[421178547,1777212641262,-150.0,0.00015068,2]
[421178548,1777212641271,-424.99,0.00015122,30]
[421178549,1777212641281,-6993.43919328,0.00015451,2]
[421178550,1777212641291,-250.0,0.00015616,2]
[421178551,1777212641300,-637.49,0.00015992,30]
[421178552,1777212641310,-350.0,0.00016164,2]
[421178553,1777212641320,-245.30933432,0.00016438,7]
[421178554,1777212641330,-245.30933432,0.00016438,2]
[421178555,1777212641339,-500.0,0.00016438,2]
[421178556,1777212641349,-200.14926409,0.00016438,2]
[421178557,1777212641359,-520.30962892,0.00016438,2]
[421178558,1777212641368,-500.0,0.00016438,2]
[421178559,1777212641378,-163.07723768,0.00016438,2]
[421178560,1777212641388,-500.0,0.00016438,2]
[421178561,1777212641398,-500.0,0.00016438,2]
[421178562,1777212641408,-500.0,0.00016438,2]
[421178563,1777212641417,-500.0,0.00016438,2]
[421178564,1777212641427,-500.0,0.00016438,2]
[421178565,1777212641437,-500.0,0.00016438,2]
[421178566,1777212641447,-450.0,0.00016712,2]
[421178567,1777212641457,-849.99,0.00016862,30]
[421178568,1777212641466,-299.99,0.00016922,4]
[421178569,1777212641476,-1000.0,0.00016986,2]
[421178570,1777212642054,-1000.0,0.00016986,2]
[421178571,1777212642074,-1000.0,0.00016986,2]
[421178572,1777212642085,-1000.0,0.00016986,2]
[421178573,1777212642095,-1000.0,0.00016986,2]
[421178574,1777212642105,-1000.0,0.00016986,2]
[421178575,1777212642115,-1000.0,0.00016986,2]
[421178576,1777212642124,-1000.0,0.00016986,2]
[421178577,1777212642134,-550.0,0.0001726,2]
[421178578,1777212642144,-279.9401,0.00017467,2]
[421178579,1777212642154,-160.0,0.00017496,2]
[421178580,1777212642163,-1500.0,0.00017534,2]
[421178581,1777212642172,-1002.6029394,0.00017534,2]
[421178582,1777212642182,-1500.0,0.00017534,2]
[421178583,1777212642191,-1500.0,0.00017534,2]
[421178584,1777212642201,-1500.0,0.00017534,2]
[421178585,1777212642211,-1500.0,0.00017534,2]
[421178586,1777212642222,-1500.0,0.00017534,2]
[421178587,1777212642232,-1105.86849475,0.00017534,2]
[421178588,1777212642241,-1024.39,0.00017567,2]
[421178589,1777212642251,-1992.64,0.00017567,2]
[421178590,1777212642261,-150.0,0.00017567,2]
[421178591,1777212642271,-646.51,0.00017578,2]
[421178592,1777212642283,-439.93,0.00017578,2]
[421178593,1777212642292,-1606.56,0.00017578,2]
[421178594,1777212642302,-1442.04,0.00017578,2]
[421178595,1777212642311,-1306.28,0.00017578,2]
[421178596,1777212642321,-152.0,0.00017615,7]
[421178597,1777212642331,-163.57,0.00017627,2]
[421178598,1777212642342,-284.53137076,0.00017714,2]
[421178599,1777212642352,-1062.49,0.00017731,30]
[421178600,1777212642362,-650.0,0.00017808,2]
[421178601,1777212642371,-162.25551732,0.0001786,2]
[421178602,1777212642380,-2000.0,0.00017885,2]
[421178603,1777212642390,-252.19,0.00017885,2]
[421178604,1777212642399,-485.08,0.00017957,2]
[421178605,1777212642408,-1065.38,0.00017957,2]
[421178606,1777212642418,-312.76,0.00017968,2]
[421178607,1777212642427,-168.33,0.00017968,2]
[421178608,1777212642436,-201.13,0.00017968,2]
[421178609,1777212642445,-677.13,0.00017968,2]
[421178610,1777212642455,-370.07,0.00017968,2]
[421178611,1777212642465,-701.05,0.00017968,2]
[421178612,1777212642475,-1183.28737762,0.00018,2]
[421178613,1777212642484,-1126.98664831,0.00018,2]
[421178614,1777212642494,-2070.37806451,0.00018082,2]
[421178615,1777212642503,-2000.0,0.00018082,2]
[421178616,1777212642513,-2003.76248355,0.00018082,2]
[421178617,1777212642522,-2000.0,0.00018082,2]
[421178618,1777212642532,-2000.0,0.00018082,2]
[421178619,1777212642543,-2004.50718795,0.00018082,2]
[421178620,1777212642552,-1183.28737762,0.000182,2]
[421178621,1777212642561,-1126.98664831,0.000182,2]
[421178622,1777212642571,-750.0,0.00018356,2]
[421178623,1777212642580,-1183.28737762,0.000184,2]
[421178624,1777212642589,-1126.98664831,0.000184,2]
[421178625,1777212642598,-1044.01678456,0.000184,72]
[421178626,1777212642608,-2579.72906129,0.000184,72]
[421178627,1777212642617,-2859.57781137,0.000184,72]
[421178628,1777212642626,-2609.50760368,0.000184,72]
[421178629,1777212642636,-2359.43739606,0.000184,72]
[421178630,1777212642645,-1183.28737762,0.000185,2]
[421178631,1777212642655,-1126.98664831,0.000185,2]
[421178632,1777212642664,-500.0,0.00018511,2]
[421178633,1777212642673,-500.0,0.00018512,2]
[421178634,1777212642682,-500.0,0.00018512,2]
[421178635,1777212642692,-500.0,0.00018512,2]
[421178636,1777212642701,-500.0,0.00018512,2]
[421178637,1777212642710,-500.0,0.00018512,2]
[421178638,1777212642720,-500.0,0.00018512,2]
[421178639,1777212642731,-500.0,0.00018512,2]
[421178640,1777212642741,-500.0,0.00018512,2]
[421178641,1777212642752,-500.0,0.00018512,2]
[421178642,1777212642762,-500.0,0.00018512,2]
[421178643,1777212642771,-500.0,0.00018512,2]
[421178644,1777212642780,-500.0,0.00018512,2]
[421178645,1777212642790,-500.0,0.00018512,2]
[421178646,1777212642800,-500.0,0.00018512,2]
[421178647,1777212642810,-500.0,0.00018512,2]
[421178648,1777212642820,-1385.16,0.00018512,2]
[421178649,1777212642830,-1385.16,0.00018512,2]
[421178650,1777212642840,-1385.16,0.00018512,2]
[421178651,1777212642849,-1385.16,0.00018512,2]
[421178652,1777212642859,-1385.16,0.00018512,2]
[421178653,1777212642868,-576.28,0.00018512,2]
[421178654,1777212642879,-1610.16,0.00018512,2]
[421178655,1777212642888,-576.28,0.00018512,2]
[421178656,1777212642897,-1610.16,0.00018512,2]
[421178657,1777212642907,-576.28,0.00018512,2]
[421178658,1777212642916,-1610.16,0.00018512,2]
[421178659,1777212642925,-576.28,0.00018512,2]
[421178660,1777212642935,-1610.16,0.00018512,2]
[421178661,1777212642945,-576.28,0.00018512,2]
[421178662,1777212642955,-1610.16,0.00018512,2]
[421178663,1777212642964,-789.0,0.00018512,2]
[421178665,1777212642973,-789.0,0.00018512,2]
[421178667,1777212642983,-789.0,0.00018512,2]
[421178669,1777212642992,-789.0,0.00018512,2]
[421178671,1777212643002,-789.0,0.00018512,2]
[421178673,1777212643012,-500.0,0.00018512,2]
[421178674,1777212643021,-500.0,0.00018512,2]
[421178675,1777212643031,-500.0,0.00018512,2]
[421178676,1777212643041,-500.0,0.00018512,2]
[421178677,1777212643050,-500.0,0.00018512,2]
[421178679,1777212643060,-1398.96,0.00018512,2]
[421178680,1777212643069,-1398.96,0.00018512,2]
[421178681,1777212643079,-1398.96,0.00018512,2]
[421178682,1777212643088,-1398.96,0.00018512,2]
[421178683,1777212643098,-1398.96,0.00018512,2]
[421178684,1777212643108,-2500.0,0.00018512,2]
[421178685,1777212643117,-153.52573807,0.00018513,2]
[421178686,1777212643127,-152.0,0.00018513,2]
[421178687,1777212643136,-154.35640537,0.00018513,2]
[421178688,1777212643146,-1451.72908577,0.00018518,21]
[421178689,1777212643156,-200.67,0.00018521,2]
[421178691,1777212643165,-1111.74514637,0.00018566,21]
[421178693,1777212643175,-500.0,0.00018573,2]
[421178694,1777212643184,-500.0,0.00018573,2]
[421178695,1777212643194,-162.9292425,0.00018573,2]
[421178696,1777212643203,-500.0,0.00018573,2]
[421178697,1777212643212,-500.0,0.00018573,2]
[421178699,1777212643222,-500.0,0.00018573,2]
[421178702,1777212643231,-500.0,0.00018573,2]
[421178704,1777212643242,-500.0,0.00018573,2]
[421178706,1777212643251,-500.0,0.00018573,2]
[421178707,1777212643260,-500.0,0.00018573,2]
[421178708,1777212643270,-500.0,0.00018573,2]
[421178709,1777212643279,-500.0,0.00018573,2]
[421178710,1777212643289,-200.14926399,0.00018573,2]
[421178711,1777212643298,-500.0,0.00018573,2]
[421178712,1777212643307,-500.0,0.00018573,2]
[421178713,1777212643316,-211.59630482,0.00018573,2]
[421178714,1777212643326,-475.50847652,0.00018573,2]
[421178715,1777212643335,-165.24190071,0.00018573,2]
[421178716,1777212643344,-500.0,0.00018573,2]
[421178717,1777212643354,-500.0,0.00018573,2]
[421178718,1777212643363,-500.0,0.00018573,2]
[421178719,1777212643373,-500.0,0.00018573,2]
[421178720,1777212643384,-528.86988736,0.00018573,2]
[421178721,1777212643393,-1274.98,0.00018601,30]
[421178722,1777212643404,-503.09713882,0.0001863,2]
[421178723,1777212643414,-503.48695172,0.0001863,2]
[421178724,1777212643425,-1786.75044736,0.0001863,2]
[421178725,1777212643436,-330.9,0.00018635,2]
[421178726,1777212643446,-1183.28737762,0.000187,2]
[421178727,1777212643456,-1126.98664831,0.000187,2]
[421178728,1777212643465,-6993.43919328,0.00018812,2]
[421178729,1777212643475,-400.0,0.00018834,2]
[421178730,1777212643484,-400.0,0.00018834,2]
[421178731,1777212643494,-1183.28737762,0.000189,2]
[421178732,1777212643504,-400.0,0.000189,6]
[421178733,1777212643514,-200.0,0.000189,2]
[421178734,1777212643523,-850.0,0.00018904,2]
[421178735,1777212643532,-400.0,0.00019,2]
[421178736,1777212643542,-1183.28737762,0.000191,2]
[421178737,1777212643552,-811.366876,0.00019121,2]
[421178738,1777212643562,-1000.0,0.00019121,2]
[421178739,1777212643573,-1000.0,0.00019121,2]
[421178740,1777212643585,-1000.0,0.00019121,2]
[421178741,1777212643595,-1000.0,0.00019121,2]
[421178742,1777212643605,-1000.0,0.00019121,2]
[421178743,1777212643615,-1000.0,0.00019121,2]
[421178744,1777212643627,-191.49397591,0.00019121,2]
[421178745,1777212643638,-1105.88694283,0.00019121,2]
[421178746,1777212643648,-387.9195695,0.00019121,2]
[421178747,1777212643658,-1000.0,0.00019121,2]
[421178748,1777212643668,-669.90867034,0.00019121,2]
[421178749,1777212643679,-1000.0,0.00019121,2]
[421178750,1777212643689,-1000.0,0.00019121,2]
[421178751,1777212643699,-1000.0,0.00019121,2]